bitfinex/quotes_SOLUSD_20260105
["timestamp","ask_amount","ask_price","bid_price","bid_amount"]
[1767613717780,26.08112025,135.56,135.52,0.66584127]
[1767613717970,5.24404953,135.55,135.52,0.66584127]
[1767613718170,0.66623315,135.55,135.52,0.66584127]
[1767613718766,5.24404953,135.56,135.52,0.66584127]
[1767613718966,0.66623315,135.55,135.51,0.66584127]
[1767613720086,0.66623315,135.55,135.51,5.24365765]
[1767613720668,8.04361256,135.55,135.51,5.24365765]
[1767613721083,8.04361256,135.55,135.51,0.66584127]
[1767613721471,8.04361256,135.55,135.51,5.24365765]
[1767613722089,0.66623315,135.55,135.52,0.66584127]
[1767613722478,0.66623315,135.56,135.52,0.66584127]
[1767613723090,0.66623315,135.56,135.52,5.24365765]
[1767613724190,8.04306542,135.56,135.52,5.24365765]
[1767613724486,0.66623315,135.55,135.52,5.24365765]
[1767613724677,0.66623315,135.55,135.52,0.66584127]
[1767613727367,8.04366599,135.55,135.52,0.66584127]
[1767613727868,0.66623315,135.56,135.53,0.66584127]
[1767613728072,8.04324793,135.56,135.53,0.66584127]
[1767613728474,8.04324793,135.56,135.52,5.24365765]
[1767613728475,0.66623315,135.55,135.52,5.24365765]
[1767613729890,0.66623315,135.55,135.52,0.66584127]
[1767613732795,8.09294939,135.57,135.53,0.70362406]
[1767613733100,0.71658398,135.56,135.53,0.70362406]
[1767613734085,8.09340304,135.56,135.53,0.70362406]
[1767613735396,0.71658398,135.55,135.51,5.28144044]
[1767613735597,0.71658398,135.55,135.51,0.70362406]
[1767613735898,8.09401274,135.55,135.51,5.28144044]
[1767613737203,0.71658398,135.54,135.51,4.57781638]
[1767613738285,13.46,135.57,135.52,0.70362406]
[1767613738286,0.71658398,135.55,135.52,0.70362406]
[1767613739198,0.71658398,135.54,135.49,11.2331987]
[1767613739378,0.59208167,135.53,135.48,11.95873595]
[1767613739897,0.59208167,135.53,135.49,11.95830662]
[1767613740397,0.59208167,135.53,135.47,19.15748589]
[1767613740398,0.71533896,135.52,135.48,11.95894703]
[1767613740892,0.71533896,135.52,135.48,7.38113065]
[1767613741094,0.71533896,135.52,135.48,11.95894703]
[1767613741701,0.71533896,135.52,135.48,4.57781638]
[1767613741898,0.71533896,135.52,135.47,12.6628812]
[1767613742221,0.59331424,135.51,135.47,11.95925714]
[1767613742591,0.69343886,135.52,135.48,0.67657044]
[1767613742788,12.64996032,135.53,135.49,0.67657044]
[1767613743398,5.19281172,135.55,135.51,0.67657044]
[1767613744099,12.57037312,135.55,135.51,0.67657044]
[1767613746493,10.91803406,135.55,135.51,0.67657044]
[1767613747494,0.69265443,135.54,135.51,0.67657044]
[1767613749718,8.07061516,135.54,135.51,0.67657044]
[1767613750218,0.69265443,135.54,135.51,0.67657044]
[1767613751013,0.69265443,135.54,135.5,10.30552394]
[1767613751222,0.69265443,135.54,135.51,0.67657044]
[1767613751420,10.30308371,135.55,135.51,0.67657044]
[1767613751612,10.99652257,135.55,135.51,0.67657044]
[1767613751914,0.61499534,135.54,135.51,0.67657044]
[1767613752517,0.61499534,135.54,135.5,10.98209438]
[1767613752917,7.992917,135.54,135.5,3.60204776]
[1767613753104,10.91839432,135.54,135.5,0.67657044]
[1767613753421,10.91839432,135.54,135.49,10.30586102]
[1767613753422,0.61577193,135.52,135.49,0.67657044]
[1767613754914,0.69343886,135.54,135.51,0.67657044]
[1767613755226,0.69343886,135.54,135.51,3.60204776]
[1767613755810,0.69343886,135.54,135.51,0.67657044]
[1767613756004,0.69343886,135.54,135.51,3.60204776]
[1767613756207,0.69343886,135.54,135.51,0.67657044]
[1767613761223,8.07112894,135.55,135.51,0.67657044]
[1767613761627,31.90196313,135.57,135.53,0.67657044]
[1767613761628,0.61499534,135.57,135.53,0.67657044]
[1767613761838,5.51985496,135.56,135.53,0.67657044]
[1767613762131,3.54047266,135.57,135.53,0.67657044]
[1767613762324,5.51985334,135.56,135.53,0.67657044]
[1767613762635,0.61499534,135.57,135.53,0.67657044]
[1767613762933,5.51983491,135.56,135.53,0.67657044]
[1767613763105,0.61499534,135.57,135.53,0.67657044]
[1767613763304,5.51983605,135.56,135.53,0.67657044]
[1767613763504,0.61499534,135.57,135.53,0.67657044]
[1767613763705,5.5197811,135.56,135.53,0.67657044]
[1767613764000,0.61499534,135.57,135.53,0.67657044]
[1767613764212,5.5197811,135.56,135.53,3.60204776]
[1767613764416,0.61499534,135.57,135.53,10.98037649]
[1767613764626,5.51972509,135.56,135.53,10.98037649]
[1767613764926,0.61499534,135.57,135.53,10.98037649]
[1767613765126,5.51972509,135.56,135.53,10.98037649]
[1767613765303,0.61499534,135.57,135.53,10.98037649]
[1767613765503,5.51967273,135.56,135.53,10.98037649]
[1767613765719,0.61499534,135.57,135.53,10.98037649]
[1767613765916,5.51967159,135.56,135.53,10.98037649]
[1767613766112,8.06899257,135.59,135.55,0.67657044]
[1767613766324,5.51967273,135.58,135.55,3.57460351]
[1767613766528,8.06899257,135.59,135.55,3.57460351]
[1767613766830,6.16029124,135.58,135.55,3.57460351]
[1767613767026,0.64216515,135.58,135.55,3.57460351]
[1767613769102,0.64216515,135.58,135.55,0.64912619]
[1767613770922,8.01797454,135.58,135.55,0.64912619]
[1767613771225,0.66409005,135.59,135.55,0.64912619]
[1767613772433,0.66409005,135.59,135.56,0.66049957]
[1767613772612,0.66409005,135.59,135.56,0.63049957]
[1767613773532,8.03932807,135.59,135.56,0.63049957]
[1767613776324,13.46,135.61,135.58,3.58597689]
[1767613776833,13.46,135.61,135.58,0.66049957]
[1767613776834,14.13129249,135.61,135.58,0.66049957]
[1767613777010,17.05676981,135.61,135.58,0.66049957]
[1767613777209,24.43092523,135.61,135.58,0.66049957]
[1767613777435,0.67129249,135.6,135.55,0.66049957]
[1767613777622,3.59676981,135.6,135.56,0.66049957]
[1767613777823,0.67129249,135.59,135.56,0.66049957]
[1767613778137,3.59676981,135.59,135.56,0.66049957]
[1767613778714,10.97233185,135.59,135.56,0.66049957]
[1767613778914,10.97233185,135.59,135.55,0.66049957]
[1767613780232,3.59676981,135.58,135.55,0.66049957]
[1767613781028,2.92547732,135.57,135.55,0.66049957]
[1767613781231,3.59676981,135.57,135.54,0.66049957]
[1767613782042,2.92547732,135.57,135.54,0.66049957]
[1767613782835,13.44,135.59,135.56,0.66049957]
[1767613782836,17.03676981,135.59,135.56,0.66049957]
[1767613783240,24.41197593,135.59,135.55,0.66049957]
[1767613783833,0.67129249,135.58,135.55,0.66049957]
[1767613784035,3.59676981,135.58,135.55,0.66049957]
[1767613787650,0.67129249,135.61,135.55,7.37696044]
[1767613787827,3.59676981,135.59,135.56,0.66049957]
[1767613789327,3.59676981,135.59,135.54,7.37774689]
[1767613789328,0.67129249,135.58,135.54,8.03824646]
[1767613791245,0.67129249,135.58,135.55,0.66049957]
[1767613792433,3.59676981,135.58,135.55,0.66049957]
[1767613794047,0.71522087,135.57,135.53,8.08410014]
[1767613794238,0.71522087,135.57,135.54,0.70588556]
[1767613795356,0.71522087,135.57,135.54,8.08373473]
[1767613796149,0.71522087,135.57,135.54,0.70588556]
[1767613797551,0.71522087,135.56,135.52,11.01029421]
[1767613798321,0.71522087,135.56,135.52,8.08481689]
[1767613798519,0.71522087,135.56,135.52,11.01029421]
[1767613799555,0.71522087,135.56,135.52,8.08481689]
[1767613799720,0.71522087,135.56,135.52,11.01029421]
[1767613800345,0.71522087,135.55,135.51,0.70588556]
[1767613800647,3.64069819,135.54,135.51,0.70588556]
[1767613800840,3.59011235,135.52,135.49,0.70449265]
[1767613801043,2.92547732,135.51,135.48,0.70449265]
[1767613801424,0.66463503,135.52,135.48,0.70449265]
[1767613802023,3.59011235,135.52,135.48,0.70449265]
[1767613804549,10.96917316,135.52,135.48,0.70449265]
[1767613804733,2.92547732,135.51,135.48,0.70449265]
[1767613805049,2.92547732,135.5,135.47,0.70449265]
[1767613805645,3.59011235,135.5,135.47,0.70449265]
[1767613806048,3.59011235,135.5,135.46,0.70449265]
[1767613806357,0.66463503,135.5,135.46,0.70449265]
[1767613806666,18.69796159,135.52,135.48,0.70449265]
[1767613807761,0.66463503,135.51,135.48,0.70449265]
[1767613811249,0.60463504,135.51,135.48,0.70449265]
[1767613811860,11.95257344,135.52,135.48,0.70449265]
[1767613812068,7.37924688,135.52,135.48,0.70449265]
[1767613813241,8.04388191,135.52,135.48,0.70449265]
[1767613814650,12.61720847,135.52,135.48,0.70449265]
[1767613815670,0.66463503,135.51,135.48,0.70449265]
[1767613818069,0.66463503,135.51,135.48,8.08546653]
[1767613818376,5.23796159,135.52,135.48,8.08546653]
[1767613820052,0.66463503,135.51,135.48,0.70449265]
[1767613820248,5.23796159,135.51,135.48,0.70449265]
[1767613821174,0.66463503,135.51,135.48,0.70449265]
[1767613823974,5.23796159,135.51,135.48,0.70449265]
[1767613825578,0.66463503,135.51,135.48,0.70449265]
[1767613825755,5.23796159,135.5,135.46,8.08634463]
[1767613825956,5.23796159,135.49,135.45,12.66035305]
[1767613826157,5.23796159,135.49,135.45,8.08702649]
[1767613826357,5.23796159,135.49,135.45,0.70449265]
[1767613826682,5.23796159,135.48,135.45,0.70449265]
[1767613826858,5.21051161,135.48,135.45,8.08725529]
[1767613830478,0.63718505,135.48,135.45,8.08725529]
[1767613830977,13.46,135.5,135.48,0.65391145]
[1767613831274,13.46,135.5,135.47,8.03561957]
[1767613831875,0.72487725,135.49,135.46,8.03590226]
[1767613832673,5.29820381,135.49,135.45,18.45667859]
[1767613832979,5.29820381,135.49,135.45,12.60989881]
[1767613833189,0.72487725,135.49,135.45,8.03657225]
[1767613833353,5.29820381,135.49,135.45,12.60989881]
[1767613834884,5.29820381,135.49,135.45,8.03657225]
[1767613835077,0.72487725,135.49,135.45,8.03657225]
[1767613835257,5.29820381,135.49,135.45,8.03657225]
[1767613837575,0.72487725,135.49,135.46,0.65391145]
[1767613837777,18.75820381,135.52,135.48,0.65391145]
[1767613838373,5.29820381,135.51,135.48,0.65391145]
[1767613838959,14.18487725,135.52,135.48,12.60839639]
[1767613839161,14.18487725,135.52,135.49,4.57332656]
[1767613839482,0.72487725,135.52,135.49,4.57332656]
[1767613839660,0.72487725,135.54,135.51,0.65391145]
[1767613839860,0.72487725,135.55,135.52,0.65391145]
[1767613840176,0.72487725,135.55,135.52,5.22723801]
[1767613840369,0.72487725,135.55,135.52,0.65391145]
[1767613840573,0.72487725,135.55,135.52,4.57332656]
[1767613841157,0.72487725,135.55,135.52,3.84832656]
[1767613841964,0.72487725,135.55,135.52,4.50223801]
[1767613843180,26.13449795,135.57,135.53,0.65391145]
[1767613843381,26.13449795,135.57,135.52,4.50223801]
[1767613843382,0.55416567,135.56,135.52,4.50223801]
[1767613843584,5.12749223,135.56,135.52,4.50223801]
[1767613844384,0.72317014,135.55,135.52,4.50223801]
[1767613846673,0.72317014,135.55,135.52,3.84832656]
[1767613848187,0.72317014,135.55,135.52,11.22719957]
[1767613849184,0.72317014,135.55,135.52,11.88111102]
[1767613849795,0.72317014,135.55,135.52,0.65391145]
[1767613854703,0.72317014,135.55,135.53,4.57332656]
[1767613855703,0.55585571,135.54,135.51,0.66000568]
[1767613856005,0.55585571,135.54,135.52,4.57332656]
[1767613856400,0.55585571,135.54,135.51,0.66000568]
[1767613856607,0.55585571,135.54,135.52,4.57332656]
[1767613857705,0.55585571,135.54,135.51,5.23333224]
[1767613858408,0.58328943,135.54,135.51,0.66000568]
[1767613858592,0.58328943,135.54,135.51,5.23333224]
[1767613860411,7.96120821,135.54,135.51,5.23333224]
[1767613860606,7.96120821,135.54,135.51,4.54332656]
[1767613860813,21.42120821,135.54,135.51,4.54332656]
[1767613861010,0.68304986,135.53,135.5,5.23494136]
[1767613861315,0.68304986,135.53,135.5,0.6616148]
[1767613861811,0.68304986,135.53,135.5,5.23494136]
[1767613863589,0.68304986,135.53,135.51,4.57332656]
[1767613863812,0.68304986,135.53,135.5,5.23494136]
[1767613864110,4.57332656,135.55,135.52,4.57332656]
[1767613864111,20.8376869,135.55,135.52,4.57332656]
[1767613864492,0.68304986,135.54,135.52,4.57332656]
[1767613866824,0.68304986,135.54,135.51,5.23494136]
[1767613868430,0.59557479,135.53,135.5,0.6616148]
[1767613868731,0.59557479,135.53,135.49,8.0419279]
[1767613868928,0.59557479,135.53,135.5,2.92570797]
[1767613869719,0.59557479,135.53,135.49,8.0419279]
[1767613869901,0.68217511,135.52,135.49,3.58732277]
[1767613871633,0.68217511,135.52,135.49,0.6616148]
[1767613872124,8.06159351,135.52,135.49,0.6616148]
[1767613872425,10.98730148,135.52,135.49,0.6616148]
[1767613876016,3.52214876,135.51,135.47,0.6616148]
[1767613876214,0.68131777,135.5,135.47,0.6616148]
[1767613876920,0.59728956,135.49,135.45,9.62089354]
[1767613877341,0.099,135.47,135.43,0.6616148]
[1767613877530,0.099,135.47,135.44,2.92570797]
[1767613878524,10.80444885,135.48,135.44,3.58732277]
[1767613879108,10.80444885,135.48,135.44,0.6616148]
[1767613882751,7.38145132,135.48,135.45,0.6616148]
[1767613882959,10.30715929,135.48,135.45,0.6616148]
[1767613885242,7.38145132,135.48,135.45,0.6616148]
[1767613886166,10.80386227,135.49,135.45,0.6616148]
[1767613886382,10.30657271,135.49,135.45,0.6616148]
[1767613886549,10.40557271,135.49,135.45,0.6616148]
[1767613889570,10.30657271,135.49,135.45,0.6616148]
[1767613894963,0.49330666,135.48,135.44,10.99598922]
[1767613895162,0.49330666,135.48,135.45,0.68704466]
[1767613896585,10.40557271,135.49,135.45,0.68704466]
[1767613897291,10.40557271,135.49,135.45,3.61275263]
[1767613897592,10.40557271,135.49,135.46,0.68704466]
[1767613899382,7.47986474,135.49,135.46,0.68704466]
[1767613899573,24.26315311,135.5,135.46,3.61275263]
[1767613900285,24.26315311,135.5,135.46,0.68704466]
[1767613902691,23.76586355,135.5,135.46,0.68704466]
[1767613902993,23.86486355,135.5,135.46,0.68704466]
[1767613903683,23.76586355,135.5,135.46,0.68704466]
[1767613903897,10.30547384,135.51,135.47,0.68704466]
[1767613904086,0.49330666,135.5,135.47,0.68704466]
[1767613904265,10.8027634,135.51,135.47,0.68704466]
[1767613908088,10.30547384,135.51,135.47,0.68704466]
[1767613913499,7.37913699,135.52,135.49,0.66935765]
[1767613913698,10.80155799,135.53,135.49,0.66935765]
[1767613914474,10.80155799,135.53,135.5,0.66935765]
[1767613915778,7.87585002,135.53,135.5,0.66935765]
[1767613916401,5.5154017,135.52,135.5,0.66935765]
[1767613916579,7.87585002,135.53,135.5,0.66935765]
[1767613916780,5.5154017,135.52,135.5,0.66935765]
[1767613916986,7.87585002,135.53,135.5,0.66935765]
[1767613917192,5.51540285,135.52,135.5,0.66935765]
[1767613917405,7.87585002,135.53,135.5,0.66935765]
[1767613917575,5.51613845,135.52,135.5,0.66935765]
[1767613917904,7.87585002,135.53,135.5,0.66935765]
[1767613918081,5.51613731,135.52,135.5,0.66935765]
[1767613918282,7.87585002,135.53,135.5,0.66935765]
[1767613918496,5.5169096,135.52,135.5,0.66935765]
[1767613918702,7.87585002,135.53,135.5,0.66935765]
[1767613918898,5.5169096,135.52,135.5,0.66935765]
[1767613919199,7.87585002,135.53,135.5,0.66935765]
[1767613919503,5.51773873,135.52,135.5,0.66935765]
[1767613919676,7.87585002,135.53,135.5,0.66935765]
[1767613919877,5.51773873,135.52,135.5,0.66935765]
[1767613920074,7.87585002,135.53,135.5,0.66935765]
[1767613920277,5.51773873,135.52,135.5,0.66935765]
[1767613920496,7.87585002,135.53,135.5,0.66935765]
[1767613920696,5.51891738,135.52,135.5,0.66935765]
[1767613920897,7.87585002,135.53,135.5,0.66935765]
[1767613921079,5.51891852,135.52,135.5,0.66935765]
[1767613921278,7.87585002,135.53,135.5,0.66935765]
[1767613921484,5.51877785,135.52,135.5,0.66935765]
[1767613921695,7.87585002,135.53,135.5,0.66935765]
[1767613921892,5.51877899,135.52,135.5,0.66935765]
[1767613922094,10.80155799,135.53,135.5,0.66935765]
[1767613922286,5.51877966,135.52,135.5,0.66935765]
[1767613922490,10.80155799,135.53,135.5,0.66935765]
[1767613922803,5.51840505,135.52,135.5,0.66935765]
[1767613923005,7.87585002,135.53,135.5,0.66935765]
[1767613923197,5.51840323,135.52,135.5,0.66935765]
[1767613923397,7.87585002,135.53,135.5,0.66935765]
[1767613923583,5.51818859,135.52,135.5,0.66935765]
[1767613923789,7.87585002,135.53,135.5,0.66935765]
[1767613923992,21.33561307,135.54,135.51,0.67144434]
[1767613926000,24.26132104,135.54,135.51,0.67144434]
[1767613926193,24.26132104,135.54,135.51,0.64144434]
[1767613926907,21.33561307,135.54,135.51,0.64144434]
[1767613928007,24.26132104,135.54,135.51,0.64144434]
[1767613928510,25.90729124,135.54,135.51,0.64144434]
[1767613932214,12.44729124,135.54,135.51,0.64144434]
[1767613932421,110.98098443,135.62,135.54,0.67144434]
[1767613932714,4.57167817,135.55,135.51,0.67144434]
[1767613932918,4.57167817,135.54,135.51,0.67144434]
[1767613933217,4.57167817,135.53,135.51,0.67144434]
[1767613934219,4.57167817,135.54,135.51,0.67144434]
[1767613934808,11.94989588,135.54,135.51,0.67144434]
[1767613936121,7.37821771,135.54,135.51,0.67144434]
[1767613937225,7.37821771,135.54,135.52,4.57167817]
[1767613938921,0.03,135.53,135.52,4.57167817]
[1767613939223,7.37821771,135.54,135.52,4.57167817]
[1767613939904,7.37821771,135.54,135.53,4.57167817]
[1767613940406,7.37821771,135.54,135.52,4.57167817]
[1767613943508,7.37821771,135.54,135.51,4.57167817]
[1767613943705,7.37821771,135.54,135.51,5.24312251]
[1767613944330,7.37821771,135.54,135.51,0.67144434]
[1767613944505,7.37821771,135.54,135.51,5.24312251]
[1767613953946,7.37821771,135.54,135.51,0.67144434]
[1767613960453,7.37821771,135.54,135.51,5.24312251]
[1767613960749,7.37821771,135.54,135.52,0.7184137]
[1767613960949,7.37821771,135.54,135.52,0.6884137]
[1767613976275,7.37821771,135.54,135.52,5.26009187]
[1767613976657,103.6,135.58,135.54,0.68867736]
[1767613976876,18.9859452,135.57,135.54,5.23290941]
[1767613977080,5.5259452,135.56,135.54,5.23290941]
[1767613977262,13.46,135.57,135.54,5.23290941]
[1767613977263,13.48744612,135.57,135.54,5.23290941]
[1767613977456,5.52476092,135.56,135.54,5.23290941]
[1767613977654,0.02744612,135.57,135.54,5.23290941]
[1767613977963,13.46,135.57,135.54,7.37762165]
[1767613978478,0.02744612,135.59,135.56,4.57167817]
[1767613978875,0.02744612,135.59,135.56,5.26035553]
[1767613979255,0.02744612,135.59,135.56,0.68867736]
[1767613979565,20.83496082,135.6,135.53,0.68867736]
[1767613979566,0.02744612,135.57,135.53,0.68867736]
[1767613979755,7.37680731,135.56,135.53,0.68867736]
[1767613979955,13.48744612,135.58,135.54,5.26035553]
[1767613980159,20.86343545,135.58,135.55,0.68867736]
[1767613980583,7.40343545,135.58,135.55,0.68867736]
[1767613980881,20.86343545,135.58,135.55,0.68867736]
[1767613982699,20.83598933,135.58,135.55,0.68867736]
[1767613982859,7.37598933,135.58,135.55,0.68867736]
[1767613983061,13.46,135.59,135.57,0.6565977]
[1767613984386,13.46,135.6,135.57,0.6565977]
[1767613984697,18.05912429,135.6,135.57,0.6565977]
[1767613984985,4.59912429,135.59,135.55,0.6565977]
[1767613985691,4.57167817,135.59,135.55,0.6565977]
[1767613986288,11.97471755,135.59,135.55,0.6565977]
[1767613986580,11.94727143,135.59,135.55,0.6565977]
[1767613987177,7.37559326,135.59,135.55,0.6565977]
[1767613987487,4.59912429,135.6,135.55,0.6565977]
[1767613987665,13.46,135.59,135.55,0.6565977]
[1767613988289,20.8355692,135.59,135.55,0.6565977]
[1767613990065,23.75911627,135.59,135.55,0.6565977]
[1767613990382,13.46,135.59,135.56,0.6565977]
[1767613992175,10.32584934,135.6,135.57,0.6565977]
[1767613992176,0.02744612,135.6,135.57,0.6565977]
[1767613993722,23.7854153,135.61,135.57,0.6565977]
[1767613994394,0.02744612,135.64,135.58,0.6565977]
[1767613994696,0.02744612,135.64,135.57,10.29970655]
[1767613994697,0.02744612,135.61,135.57,10.29970655]
[1767613994903,2.95099319,135.62,135.58,0.6565977]
[1767613995286,2.95099319,135.61,135.57,0.6565977]
[1767613995486,2.95099319,135.6,135.57,0.6565977]
[1767613995673,2.92354707,135.58,135.55,0.6565977]
[1767613996073,16.39099319,135.59,135.55,0.6565977]
[1767613996293,16.39099319,135.59,135.56,0.6565977]
[1767613996902,13.44,135.59,135.56,0.6565977]
[1767613997094,20.8151784,135.59,135.56,0.6565977]
[1767613997287,2.95099319,135.6,135.57,1.6565977]
[1767613997598,16.39099319,135.6,135.57,1.6265977]
[1767613998994,23.7658743,135.6,135.57,1.6265977]
[1767613999196,20.84232723,135.6,135.57,1.6265977]
[1767613999500,23.7658743,135.6,135.57,1.6265977]
[1767614003102,10.29880178,135.59,135.57,1.6265977]
[1767614003603,7.37525471,135.59,135.57,1.6265977]
[1767614003807,10.29880178,135.59,135.57,1.6265977]
[1767614004908,0.02744612,135.58,135.57,0.94255388]
[1767614005302,10.29880178,135.59,135.57,0.94255388]
[1767614006389,23.73880178,135.59,135.57,0.94255388]
[1767614008506,23.73880178,135.59,135.57,1.59915158]
[1767614013489,23.73880178,135.59,135.57,0.94255388]
[1767614016312,20.81525471,135.59,135.57,0.94255388]
[1767614016494,23.73880178,135.59,135.57,0.94255388]
[1767614018012,20.81542345,135.59,135.57,1.64168146]
[1767614018312,7.374882,135.6,135.58,0.69912758]
[1767614018513,20.814882,135.6,135.58,0.66912758]
[1767614018704,20.814882,135.6,135.57,0.94255388]
[1767614018705,23.76842907,135.6,135.57,0.94255388]
[1767614020514,2.92354707,135.59,135.57,1.64168146]
[1767614021701,20.844882,135.6,135.57,1.64168146]
[1767614021893,2.92354707,135.59,135.57,1.64168146]
[1767614024305,20.844882,135.6,135.57,1.64168146]
[1767614024506,2.92354707,135.59,135.57,1.64168146]
[1767614025716,2.92354707,135.59,135.58,0.69912758]
[1767614025915,16.36354707,135.6,135.58,0.69912758]
[1767614028803,2.92354707,135.59,135.58,0.69912758]
[1767614031117,2.92354707,135.59,135.57,0.94255388]
[1767614031428,2.92354707,135.58,135.57,0.94255388]
[1767614031604,2.92354707,135.58,135.55,7.3770472]
[1767614032217,2.92354707,135.58,135.54,18.44418968]
[1767614033228,2.92354707,135.58,135.55,0.68013542]
[1767614033609,7.53873866,135.59,135.55,0.68013542]
[1767614033917,2.92354707,135.58,135.55,0.68013542]
[1767614035506,7.53873866,135.59,135.55,0.68013542]
[1767614035707,7.53873866,135.59,135.56,0.68013542]
[1767614038433,7.53873866,135.59,135.56,3.60368249]
[1767614039332,7.53873866,135.59,135.57,0.68013542]
[1767614039538,7.53873866,135.59,135.57,3.60368249]
[1767614040406,0.16354198,135.59,135.57,3.60368249]
[1767614040827,7.53875644,135.59,135.57,0.68013542]
[1767614041017,7.53875644,135.59,135.56,3.63335558]
[1767614044434,7.53875644,135.59,135.57,0.70980851]
[1767614047834,0.16354198,135.59,135.57,0.70980851]
[1767614048944,7.53872566,135.59,135.57,0.70980851]
[1767614050849,7.37518368,135.59,135.57,0.70980851]
[1767614052045,21.50594995,135.6,135.57,0.70980851]
[1767614052745,21.50594995,135.6,135.57,5.27713404]
[1767614054167,0.69112258,135.6,135.57,5.27713404]
[1767614054345,14.13112258,135.6,135.57,5.27713404]
[1767614055264,13.44,135.6,135.58,5.27713404]
[1767614056658,13.57662495,135.6,135.58,5.27713404]
[1767614061354,13.44,135.6,135.58,0.70980851]
[1767614061552,8.06541605,135.61,135.59,5.27713404]
[1767614061752,5.52236507,135.6,135.59,5.27713404]
[1767614062460,4.79736507,135.6,135.59,5.27713404]
[1767614062760,21.50491235,135.62,135.59,5.27713404]
[1767614062946,21.50491235,135.62,135.6,4.56732553]
[1767614063147,21.50491235,135.62,135.59,0.67980851]
[1767614063348,21.50491235,135.62,135.59,5.24713404]
[1767614065662,0.69112258,135.61,135.59,5.24713404]
[1767614066667,0.69112258,135.61,135.59,4.56732553]
[1767614067162,0.69112258,135.62,135.6,5.27713404]
[1767614068366,14.13112258,135.63,135.6,5.27713404]
[1767614070193,0.69112258,135.63,135.6,5.27713404]
[1767614070388,14.13112258,135.63,135.61,0.70980851]
[1767614070880,14.13112258,135.63,135.6,5.26706898]
[1767614072289,14.13112258,135.63,135.61,0.69974345]
[1767614072469,14.12948344,135.64,135.61,5.26706898]
[1767614073196,0.68948344,135.63,135.61,0.69974345]
[1767614073389,0.68948344,135.63,135.61,5.26706898]
[1767614074771,0.68948344,135.63,135.61,0.69974345]
[1767614078405,21.5020194,135.64,135.61,0.69974345]
[1767614078610,8.0620194,135.64,135.61,5.26706898]
[1767614078786,21.5020194,135.64,135.61,5.26706898]
[1767614080707,21.5020194,135.64,135.61,0.69974345]
[1767614080907,21.5020194,135.64,135.61,5.26706898]
[1767614081598,0.68948344,135.63,135.6,0.69974345]
[1767614081788,0.68948344,135.6,135.53,0.69974345]
[1767614081984,8.06583647,135.57,135.54,0.69974345]
[1767614082385,0.68948344,135.56,135.53,0.69974345]
[1767614082804,0.68948344,135.56,135.53,5.26706898]
[1767614084184,0.68948344,135.56,135.53,0.69974345]
[1767614089094,0.68948344,135.55,135.52,0.69974345]
[1767614089298,13.44,135.56,135.54,0.69974345]
[1767614090403,21.50549757,135.58,135.55,0.69974345]
[1767614090610,21.50549757,135.58,135.55,5.26706898]
[1767614093186,8.06549757,135.58,135.55,5.26706898]
[1767614093493,21.50549757,135.58,135.55,5.26706898]
[1767614095803,21.50549757,135.58,135.56,0.68447592]
[1767614096004,21.50549757,135.58,135.56,0.65447592]
[1767614096300,21.50549757,135.58,135.55,4.56732553]
[1767614097936,21.50549757,135.58,135.55,5.25180145]
[1767614100309,8.04186005,135.6,135.57,0.68189607]
[1767614100626,0.66704038,135.59,135.57,0.68189607]
[1767614101116,0.66704038,135.59,135.56,5.26557511]
[1767614102112,0.66704038,135.59,135.55,5.26557511]
[1767614102317,0.66704038,135.59,135.55,0.69824958]
[1767614102318,8.04805185,135.58,135.55,0.69824958]
[1767614102911,8.04805185,135.58,135.55,5.26557511]
[1767614105040,14.11233272,135.59,135.57,0.69824958]
[1767614107937,0.67233272,135.59,135.57,0.69824958]
[1767614108237,0.67233272,135.59,135.56,0.69824958]
[1767614108416,0.67233272,135.59,135.56,5.26557511]
[1767614112618,0.67233272,135.59,135.56,3.62121331]
[1767614113354,0.67233272,135.59,135.57,0.69824958]
[1767614113943,0.67233272,135.59,135.56,10.99799903]
[1767614118418,21.48710982,135.6,135.57,0.69824958]
[1767614124627,21.48710982,135.6,135.57,3.62121331]
[1767614128952,21.48710982,135.6,135.57,0.69824958]
[1767614129142,21.48710982,135.6,135.57,3.62121331]
[1767614129544,0.67233272,135.61,135.58,3.62121331]
[1767614129745,14.11233272,135.61,135.58,3.62121331]
[1767614131232,14.11233272,135.61,135.58,10.9969077]
[1767614133849,13.44,135.61,135.59,0.69885874]
[1767614134745,14.13369569,135.61,135.59,0.69885874]
[1767614140642,13.44,135.61,135.59,0.69885874]
[1767614140962,8.06743426,135.62,135.59,0.69885874]
[1767614141263,21.50743426,135.62,135.59,0.69885874]
[1767614145770,0.69369569,135.62,135.59,0.69885874]
[1767614145957,14.13369569,135.62,135.59,3.62182247]
[1767614146638,14.13369569,135.62,135.6,0.69885874]
[1767614147245,0.69369569,135.65,135.61,0.69885874]
[1767614147470,103.6,135.67,135.63,0.69885874]
[1767614147471,8.06506529,135.66,135.63,0.69885874]
[1767614147671,5.51164198,135.65,135.63,0.69885874]
[1767614147871,3.61665942,135.65,135.62,0.69885874]
[1767614148167,0.69369569,135.65,135.62,0.69885874]
[1767614148344,3.61665942,135.64,135.61,0.69885874]
[1767614148550,0.69369569,135.64,135.61,0.69885874]